[Event "21st Open Gran Hotel Bali-A 2024"]
[Site "Benidorm"]
[Date "2024.11.30"]
[Round "3.18"]
[White "Aamodt, Peder Marcus"]
[Black "Gormally, Daniel W"]
[Result "0-1"]
[ECO "E69"]
[WhiteElo "2178"]
[BlackElo "2424"]
[Annotator "TA"]
[PlyCount "66"]
[EventDate "2024.11.26"]
[EventType "swiss"]
[EventCountry "ESP"]
[SourceTitle "playchess.com"]
[Source "ChessBase"]
[SourceQuality "1"]
[TimeControl "5400+30"]

{[%evp 23,66,40,41,34,51,19,115,2,10,-13,-13,-27,-21,-11,-29,-16,-10,-20,-12,-19,-1,-40,-16,-106,-97,-114,-114,-119,-70,-231,-238,-241,-252,-245,-237,-292,-293,-314,-319,-391,-378,-464,-460,-461,-458]} 1. Nf3 {[%emt 0:06:30]} Nf6 {[%emt 0:00:44]} 2. g3 {[%emt 0:00:50]} g6 {[%emt 0:01:07]} 3. Bg2 {[%emt 0:00:12]} Bg7 {[%emt 0:00:14]} 4. c4 {[%emt 0:01:34]} O-O {[%emt 0:00:56]} 5. Nc3 {[%emt 0:01:08]} d6 {[%emt 0:00:58]} 6. d4 {[%emt 0:01:17]} Nbd7 {[%emt 0:00:28]} 7. e4 {[%emt 0:02:25]} e5 {[%emt 0:00:37]} 8. O-O {[%emt 0:00:53]} Re8 {[%emt 0:01:13]} 9. Re1 {[%emt 0:01:08]} exd4 {[%emt 0:01:23]} 10. Nxd4 {[%emt 0:00:28]} Nc5 {[%emt 0:01:39]} 11. h3 {[%emt 0:05:45]} c6 {[%emt 0:02:17]} 12. Bf4 {[%emt 0:02:30]} Ne6 {[%emt 0:08:45]} 13. Nxe6 {[%emt 0:09:51]} Bxe6 {[%emt 0:00:08]} 14. Bf1 {[%emt 0:03:12]} Qb6 {[%emt 0:09:25]} (14... d5 $11) 15. Qd2 {[%emt 0:10:45]} (15. Qxd6 Qxb2 16. Na4 Nxe4 17. Nxb2 Nxd6 18. Bxd6 Bxb2 $11) (15. Bxd6 $16 Nd7 (15... Qxb2 $2 16. Na4 $18) 16. e5) 15... Nd7 $11 {[%emt 0:02:41]} 16. Na4 {[%emt 0:08:10]} (16. Qxd6 Qxb2 17. Na4 Qc2 $17) 16... Qd8 {[%emt 0:09:28]} 17. Qxd6 {[%emt 0:08:59]} Qa5 {[%emt 0:00:21]} 18. Qd1 {[%emt 0:00:57]} Ne5 {[%emt 0:02:14]} 19. Bxe5 {[%emt 0:03:24]} Bxe5 {[%emt 0:00:06]} 20. Qc2 {[%emt 0:00:05]} Rad8 {[%emt 0:01:44][%mdl 1024] Black has compensation. White is weak on the dark squares} 21. Rad1 {[%emt 0:01:10] Inhibits Rd2.} Bd4 {[%emt 0:01:57]} 22. c5 {[%emt 0:04:41]} b5 {[%emt 0:03:43]} (22... Bxa2 $6 23. b3 b5 24. cxb6 (24. Qxa2 bxa4 25. bxa4 Rb8 $15) 24... axb6 25. Qxa2 $16) 23. Nc3 {[%emt 0:07:17]} (23. cxb6 $11 {remains equal.} axb6 24. Nc3) 23... Qb4 $1 $17 {[%emt 0:03:31]} (23... Bxc5 24. Nd5 cxd5 25. Qxc5 $11) (23... Bxa2 24. b4 Qxb4 25. Nxa2 $16) 24. Ne2 {[%emt 0:04:52] Hoping for a3.} Bxb2 {[%emt 0:00:38] Black is much more active. This pair of bishops is nice.} (24... Qxb2 $2 25. Nxd4 Qxd4 26. Rxd4 $18) 25. Nf4 {[%emt 0:02:56]} Bd4 {[%emt 0:06:04]} ({Black should play} 25... Bxa2 $17 {aiming for ...Bc4.} 26. Nd3 Qb3 (26... Qc3 $2 27. Qxb2 Rxd3 28. Qxa2 $18) 27. Qxb2 Rxd3 28. Qxb3 Rxb3) 26. Rc1 $2 {[%emt 0:05:34] [#] This costs White the game.} (26. Nxe6 $15 Rxe6 27. a4) 26... Qa3 $1 $19 {[%emt 0:01:10][%csl LRa2,LRg3]} 27. Nxe6 {[%emt 0:05:15]} Qxg3+ {[%emt 0:01:16]} (27... Rxe6 28. Kg2 $17) 28. Bg2 {[%emt 0:00:04]} Rxe6 {[%emt 0:02:25]} 29. e5 {[%emt 0:00:19]} Rxe5 {[%emt 0:02:27]} (29... Rd5 30. Kf1 Qh2 31. Qd2 Rexe5 (31... Bxc5 $2 {loses.} 32. Bxd5 cxd5 33. Rxc5 $18) 32. Rxe5 Qxe5 (32... Bxe5 33. Bxd5 Bf4 34. Bxf7+ Kxf7 35. Qd7+ Kf8 36. Rd1 $11) 33. Bxd5 Qxd5 34. Rc2 $17) 30. Rxe5 {[%emt 0:00:11]} Qxe5 {[%emt 0:00:06]} 31. Bxc6 {[%emt 0:02:51]} Qg5+ {[%emt 0:06:12]} ({Not} 31... Rc8 32. Bg2 $19) 32. Bg2 {[%emt 0:00:13] [#]} Bxf2+ $1 {[%emt 0:00:21][%mdl 512]} 33. Kh1 {[%emt 0:00:16] [#]} Bxc5 $1 {[%emt 0:01:28][%mdl 512] Weighted Error Value: White=0.40/Black=0.13 (very precise) .  Loses game:     	White=1     	---        Mistake:       	White=2     	Black=2      Inaccurate:     	White=2     	---        OK:         	White=6     	Black=7      Best:        	White=2     	Black=1      Strong:       	---       	Black=2} 0-1

[Event "21st Open Gran Hotel Bali-A 2024"]
[Site "Benidorm"]
[Date "2024.11.30"]
[Round "3.19"]
[White "Elsness, Frode"]
[Black "Kanyamarala, Trisha"]
[Result "1-0"]
[ECO "E53"]
[WhiteElo "2424"]
[BlackElo "2171"]
[Annotator "TA"]
[PlyCount "129"]
[EventDate "2024.11.26"]
[EventType "swiss"]
[EventCountry "ESP"]
[SourceTitle "playchess.com"]
[Source "ChessBase"]
[SourceQuality "1"]
[TimeControl "5400+30"]

{[%evp 23,129,2,7,27,17,4,25,0,0,0,7,0,0,0,29,0,29,11,64,72,128,62,64,5,0,0,0,-16,41,37,47,47,52,54,56,49,90,90,92,93,95,102,95,79,81,64,72,72,72,72,81,81,164,141,141,141,141,141,141,141,141,83,52,0,141,0,141,0,141,141,141,141,141,157,171,141,267,263,261,264,252,242,362,349,291,285,575,575,530,482,1022,1010,29958,29948,29951,29948,29969,29972,29977,29968,29958,6320,29978,29979,29988,29989,29991,29992]} 1. d4 {[%emt 0:00:44]} Nf6 {[%emt 0:00:37]} 2. c4 {[%emt 0:00:03]} e6 {[%emt 0:00:26]} 3. Nc3 {[%emt 0:00:04]} Bb4 {[%emt 0:00:56]} 4. e3 {[%emt 0:00:04]} O-O {[%emt 0:01:03]} 5. Bd3 {[%emt 0:00:27]} d5 {[%emt 0:01:47]} 6. a3 {[%emt 0:00:16]} Bxc3+ {[%emt 0:00:47]} 7. bxc3 {[%emt 0:00:01]} dxc4 {[%emt 0:00:20]} 8. Bxc4 {[%emt 0:00:01]} c5 {[%emt 0:00:39]} 9. Nf3 {[%emt 0:00:06]} Qc7 {[%emt 0:00:07]} 10. Be2 {[%emt 0:00:08]} Nbd7 {[%emt 0:03:11][%cal Bb8d7,Bd7f8,Bf8e6][%mdl 32]} 11. O-O {[%emt 0:02:59]} b6 {[%emt 0:00:57]} 12. Bb2 {[%emt 0:00:40]} Bb7 {[%emt 0:02:09]} 13. Re1 {[%emt 0:03:11]} e5 {[%emt 0:06:55]} 14. a4 {[%emt 0:07:50]} Rfd8 {[%emt 0:04:49]} 15. Nd2 {[%emt 0:10:04] White has an edge.} Nf8 {[%emt 0:06:09]} 16. Qb3 {[%emt 0:12:16]} Ne6 {[%emt 0:07:28]} 17. Nf3 {[%emt 0:10:28]} exd4 {[%emt 0:09:09]} 18. cxd4 {[%emt 0:02:17]} Rac8 {[%emt 0:04:46]} 19. Rac1 {[%emt 0:07:06]} Qb8 {[%emt 0:13:07]} 20. Bc4 {[%emt 0:08:14]} (20. dxc5 {simplifies} Nxc5 21. Qb4 Bxf3 22. gxf3 Ne8 23. Red1) 20... Bxf3 {[%emt 0:11:57]} ({Black should play} 20... Qd6 $1 $11) 21. Bxe6 $14 {[%emt 0:01:33] A strong pair of Bishops.} (21. gxf3 Ng5 22. Be2 Qb7 $15) 21... Ng4 {[%emt 0:09:34]} 22. Bxg4 {[%emt 0:10:51]} (22. gxf3 $2 Qxh2+ 23. Kf1 Qxf2#) (22. Bxf7+ $16 Kh8 23. g3 (23. gxf3 $2 Qxh2+ 24. Kf1 Qxf2#)) 22... Bxg4 {[%emt 0:00:07]} 23. dxc5 {[%emt 0:00:04]} ({White should try} 23. d5 $14) 23... Be6 $1 $11 {[%emt 0:04:00]} 24. Qc3 {[%emt 0:00:50][%csl Gb2][%cal Rc3g7]} f6 {[%emt 0:00:07]} 25. Ba3 {[%emt 0:07:40] White is weak on the light squares} Rc6 {[%emt 0:05:45]} (25... bxc5 $11 26. Bxc5 Rd5) 26. Qa1 $14 {[%emt 0:04:37]} Rdc8 {[%emt 0:01:22][%cal Rb6c5]} 27. Rb1 {[%emt 0:01:22]} Qc7 {[%emt 0:00:59]} 28. cxb6 {[%emt 0:00:35]} axb6 {[%emt 0:00:55]} 29. Qd4 {[%emt 0:03:23]} Rc4 {[%emt 0:03:45]} 30. Qxb6 {[%emt 0:02:26]} Qxb6 {[%emt 0:00:05]} 31. Rxb6 {[%emt 0:00:03]} Rxa4 {[%emt 0:00:29]} 32. Rxe6 {[%emt 0:01:23]} Rxa3 $16 {[%emt 0:00:06][%mdl 4096] Endgame. KRR-KRR} 33. h3 {[%emt 0:02:20]} Rac3 {[%emt 0:01:01]} 34. g4 {[%emt 0:01:29]} Rc1 {[%emt 0:00:31]} 35. Rxc1 {[%emt 0:00:01]} Rxc1+ {[%emt 0:00:01] KR-KR} 36. Kg2 {[%emt 0:00:01]} Kf7 {[%emt 0:00:53]} 37. Rd6 {[%emt 0:00:22]} h5 {[%emt 0:01:26]} 38. Rd7+ {[%emt 0:02:01]} Kg6 {[%emt 0:00:11]} 39. gxh5+ {[%emt 0:00:09]} Kh6 {[%emt 0:00:05]} 40. Rd5 {[%emt 0:00:04] Wards off Rc5} Re1 {[%emt 0:01:09]} 41. Rf5 {[%emt 0:00:22]} Kh7 {[%emt 0:00:24]} 42. Rf4 {[%emt 0:01:16]} (42. Rc5 $142) 42... Kh6 {[%emt 0:00:36]} 43. Rf5 {[%emt 0:01:15]} (43. Rg4 $14) 43... Kh7 $1 {[%emt 0:00:05] Black is on the road to losing.} 44. Rd5 {[%emt 0:00:14]} Kh6 {[%emt 0:00:06]} 45. Rd7 {[%emt 0:00:18]} (45. Rb5 $16) 45... Kh7 {[%emt 0:00:54]} (45... Rc1 $1 $11) 46. Kg3 {[%emt 0:01:09]} Rg1+ {[%emt 0:00:21]} 47. Kh4 $1 {[%emt 0:00:33]} Rg5 {[%emt 0:00:55]} 48. f4 {[%emt 0:00:37]} Rc5 {[%emt 0:00:09]} 49. Rd8 {[%emt 0:00:25] Threatens to win with Kg4.} Rc2 {[%emt 0:01:08]} (49... Rc1 $16 50. Re8 Rc3) 50. Kg4 $18 {[%emt 0:00:17]} Rg2+ {[%emt 0:00:21] [#]} 51. Kf3 $1 {[%emt 0:00:37]} Rh2 {[%emt 0:00:09] [#]} 52. Kg3 {[%emt 0:00:06]} Rh1 {[%emt 0:00:37]} (52... Re2 $142 53. Re8 Rb2) 53. e4 {[%emt 0:00:19] aiming for Kg4.} Rg1+ {[%emt 0:00:19]} 54. Kf3 {[%emt 0:00:36]} Rf1+ $2 {[%emt 0:00:30]} (54... Re1 {was necessary.} 55. Re8 Rg1) 55. Kg4 {[%emt 0:00:04]} Rg1+ {[%emt 0:00:38]} 56. Kf5 {[%emt 0:00:03]} Rg3 {[%emt 0:00:29] [#]} (56... Rf1 $142 57. Re8 Rf3) 57. h6 $1 {[%emt 0:01:18] hxg7 would now be deadly.} g5 {[%emt 0:00:32]} (57... g6+ 58. Kxf6) 58. fxg5 {[%emt 0:00:38]} fxg5 {[%emt 0:00:03]} 59. Rd6 {[%emt 0:00:57]} Re3 {[%emt 0:01:08]} 60. e5 {[%emt 0:00:21][%cal Be4e5,Be5e6,Be6e7][%mdl 32]} ({Worse is} 60. Kxg5 Rxe4 61. Rd7+ Kg8 $11) 60... Re1 {[%emt 0:00:08]} 61. Re6 {[%emt 0:00:29]} ({Inferior is} 61. Kxg5 Rxe5+ 62. Kg4 Re4+ 63. Kg5 Re5+ 64. Kg4 Re4+ 65. Kh5 Re5+ 66. Kh4 Ra5 $11) 61... Rg1 {[%emt 0:00:06]} 62. Rb6 {[%emt 0:00:39]} (62. Rf6 $142 Rg3 63. e6 Re3 64. Kxg5 Rg3+ 65. Kf4 Rg2 66. Ke5 Re2+ 67. Kd6) 62... Re1 {[%emt 0:00:09]} 63. e6 {[%emt 0:00:35] White mates.} (63. Kxg5 Rxe5+ 64. Kf4 Rc5 $11) 63... Kxh6 {[%emt 0:00:08]} 64. e7+ {[%emt 0:00:21]} Kg7 {[%emt 0:00:06]} 65. Re6 {[%emt 0:00:08] Weighted Error Value: White=0.15 (very precise) /Black=0.34.  Mistake:       	White=5     	Black=9      Inaccurate:     	White=1     	Black=4      OK:         	White=12    	Black=8      Best:        	White=7     	Black=4      Strong:       	White=2     	Black=2      Brilliant:      	White=1     	---} ({Not} 65. Kxg5 Re5+ 66. Kf4 Rxe7 $16) 1-0

[Event "21st Open Gran Hotel Bali-A 2024"]
[Site "Benidorm"]
[Date "2024.11.30"]
[Round "3.20"]
[White "Sanz Gorospe, Ibai"]
[Black "Abergel, Thal"]
[Result "0-1"]
[ECO "C41"]
[WhiteElo "2167"]
[BlackElo "2408"]
[Annotator "TA"]
[PlyCount "84"]
[EventDate "2024.11.26"]
[EventType "swiss"]
[EventCountry "ESP"]
[SourceTitle "playchess.com"]
[Source "ChessBase"]
[SourceQuality "1"]
[TimeControl "5400+30"]

{[%evp 9,84,28,27,23,50,33,53,0,0,-4,0,-15,-14,-13,0,-49,-48,-64,-76,-72,-47,-42,-38,-47,-45,-58,28,-37,0,0,86,-158,43,-100,-80,-97,-38,-63,-83,-122,-149,-128,-182,-212,-227,-378,-379,-666,-666,-603,-512,-521,-517,-629,-635,-624,-631,-595,-502,-703,-656,-685,-691,-687,-583,-665,-668,-709,-689,-1929,-1645,-5656,-3900,-29995,-29990,-29991,-29992]} 1. e4 {[%emt 0:00:04]} d6 {[%emt 0:00:04]} 2. d4 {[%emt 0:00:06]} Nf6 {[%emt 0:00:04]} 3. Nc3 {[%emt 0:00:05]} e5 {[%emt 0:00:04]} 4. Nf3 {[%emt 0:00:04]} Nbd7 {[%emt 0:00:04]} 5. Rg1 {[%emt 0:00:09]} c6 {[%emt 0:01:08]} 6. g4 {[%emt 0:00:26]} g6 {[%emt 0:00:41]} 7. Be3 {[%emt 0:01:38]} h5 {[%emt 0:02:40]} 8. g5 {[%emt 0:02:27]} ({White should play} 8. h3 $14) 8... Ng4 $11 {[%emt 0:00:35]} 9. Qd2 {[%emt 0:04:49]} Qa5 {[%emt 0:05:21]} 10. O-O-O {[%emt 0:05:42]} b5 {[%emt 0:00:33]} 11. a3 {[%emt 0:00:57]} a6 {[%emt 0:01:23]} 12. Ne1 {[%emt 0:05:49]} (12. Bh3 $11) 12... Nxh2 {[%emt 0:06:05]} 13. f4 {[%emt 0:06:03]} Nxf1 {[%emt 0:03:31]} 14. Rxf1 {[%emt 0:00:06]} exf4 {[%emt 0:01:54]} 15. Bxf4 {[%emt 0:01:15]} Nb6 $1 {[%emt 0:05:14]} 16. Nd3 {[%emt 0:04:37]} Nc4 $1 {[%emt 0:01:15]} 17. Qf2 {[%emt 0:06:59]} Be7 {[%emt 0:05:45]} (17... Bh3 $1 $15 18. Rh1 Bg4) 18. Nb1 {[%emt 0:09:02]} (18. d5 $11) 18... Qd8 {[%emt 0:03:04][%cal Oc8g4]} 19. b3 {[%emt 0:03:24]} Nb6 {[%emt 0:00:18]} (19... Na5 $1 $11 {remains equal.}) 20. Be3 $2 {[%emt 0:04:34] [#]} (20. d5 $1 $16 {keeps the pressure on. and Be3 should not be overlooked} O-O 21. Nb4 (21. dxc6 Bg4 $14)) 20... Rh7 $2 {[%emt 0:03:29]} ({Black should try} 20... O-O $1 $17 {[%cal Oa6a5] ...a5! would now be deadly.} 21. d5 c5 (21... Bxg5 22. dxc6 Bxe3+ 23. Qxe3 $11)) 21. Qf4 {[%emt 0:01:10]} (21. d5 $1 $14 c5 22. Qf4) 21... Bg4 $36 {[%emt 0:04:45][%mdl 2048] Keeping White busy.} 22. Rde1 {[%emt 0:01:18][%cal Od4d5]} Qc7 {[%emt 0:00:37]} (22... Kf8 $17) 23. d5 {[%emt 0:08:35]} c5 {[%emt 0:05:06]} (23... Kf8 {is more complex.} 24. dxc6 Qxc6 25. Bd4 Rc8) 24. b4 {[%emt 0:04:41]} cxb4 {[%emt 0:04:26]} 25. Bxb6 {[%emt 0:00:40]} Qxb6 {[%emt 0:00:06]} 26. e5 {[%emt 0:00:33] [#]} Kf8 $1 {[%emt 0:01:30]} 27. exd6 $2 {[%emt 0:02:22]} (27. Nd2 bxa3 28. Ne4) 27... Qxd6 $19 {[%emt 0:02:07]} 28. Ne5 $2 {[%emt 0:02:33]} (28. Nd2) 28... bxa3 {[%emt 0:05:32]} 29. Nc3 {[%emt 0:00:28][%cal Oc3e4] [#]} a2 $1 {[%emt 0:07:39]} 30. Nxa2 {[%emt 0:01:37]} Bf5 {[%emt 0:01:22][%cal Oa8c8]} (30... Qxd5 $2 {too greedy.} 31. Nxg6+ Kg7 32. Nxe7 Qxa2 33. Qd4+ Kf8 34. g6 $18) 31. Rf2 {[%emt 0:04:27]} Rc8 {[%emt 0:02:48]} 32. Kb1 {[%emt 0:00:33]} h4 {[%emt 0:03:46]} 33. Qe3 {[%emt 0:00:16]} Kg8 {[%emt 0:06:52]} 34. Nf3 {[%emt 0:04:30]} Bf8 {[%emt 0:01:41][%cal Oh4h3]} 35. Nd4 {[%emt 0:00:07]} Bd7 {[%emt 0:01:17][%cal Oc8e8]} 36. Qf3 {[%emt 0:00:05]} Qg3 {[%emt 0:00:57]} 37. Qf6 {[%emt 0:01:08]} h3 {[%emt 0:01:21]} 38. Nc1 {[%emt 0:02:28]} Qd6 {[%emt 0:00:39]} 39. Re6 {[%emt 0:03:08]} Qxd5 {[%emt 0:02:11]} 40. Nd3 {[%emt 0:02:46]} Bxe6 {[%emt 0:01:01]} 41. Nf4 {[%emt 0:00:33]} Qa2+ {[%emt 0:00:36]} 42. Kc1 {[%emt 0:00:02]} h2 {[%emt 0:00:44]} 0-1